[Event "1000GM Summer GM-I 2024"]
[Site "San Jose"]
[Date "2024.07.05"]
[Round "3.4"]
[White "Sripada, Havish"]
[Black "Gumularz, Szymon"]
[Result "0-1"]
[ECO "B12"]
[WhiteElo "2290"]
[BlackElo "2587"]
[Annotator "TA"]
[PlyCount "86"]
[EventDate "2024.07.03"]
[EventType "tourn"]
[EventCountry "USA"]
[SourceTitle "playchess.com"]
[Source "ChessBase"]
[SourceQuality "1"]
[TimeControl "5400+30"]

{[%evp 10,86,30,24,48,31,29,18,12,15,8,-10,-12,-63,-58,-104,-83,-185,-183,-160,-167,-164,-169,-166,-164,-233,-237,-237,-244,-235,-218,-241,-242,-276,-288,-281,-269,-267,-275,-289,-201,-309,-305,-337,-343,-347,-364,-564,-570,-550,-591,-599,-581,-827,-796,-860,-775,-711,-475,-966,-950,-1268,-875,-841,-720,-5493,-1322,-29977,-29978,-29978,-29979,-29978,-29978,-29983,-29982,-29986,-29987,-29986,-29987]} 1. e4 {[%emt 0:00:02]} c6 {[%emt 0:00:06]} 2. d4 {[%emt 0:00:06]} d5 {[%emt 0:00:05]} 3. e5 {[%emt 0:00:04]} Bf5 {[%emt 0:00:06]} 4. Nf3 {[%emt 0:00:11]} e6 {[%emt 0:00:05]} 5. Be2 {[%emt 0:00:05]} Nd7 {[%emt 0:00:05]} 6. O-O {[%emt 0:00:08]} a5 {[%emt 0:00:05]} 7. a4 {[%emt 0:01:20]} f6 {[%emt 0:00:21]} 8. c4 {[%emt 0:01:18]} fxe5 {[%emt 0:00:14] The position is equal.} 9. dxe5 {[%emt 0:01:58] Hoping for cxd5.} Bc5 {[%emt 0:00:15]} 10. cxd5 {[%emt 0:03:18]} exd5 {[%emt 0:01:20]} 11. Nc3 {[%emt 0:02:52]} (11. Bd3 $11 Bxd3 12. Qxd3) 11... Ne7 $15 {[%emt 0:00:17]} 12. Bd3 {[%emt 0:06:10]} (12. Be3 $15) 12... O-O $17 {[%emt 0:07:41] Strongly threatening ...Bg4.} 13. Qc2 {[%emt 0:09:36]} (13. e6 $17 Nf6 (13... Bxe6 14. Bxh7+ Kh8 15. Ng5 $14) 14. Ne2) 13... Bxd3 $19 {[%emt 0:02:42]} 14. Qxd3 {[%emt 0:00:12]} Ng6 {[%emt 0:01:07]} 15. e6 {[%emt 0:04:04]} Nde5 {[%emt 0:00:52]} 16. Nxe5 {[%emt 0:00:09]} Nxe5 {[%emt 0:00:02]} 17. Qe2 {[%emt 0:02:56]} (17. Qh3 $142) 17... Qf6 {[%emt 0:00:24]} 18. Be3 {[%emt 0:02:24]} Bxe3 {[%emt 0:00:08]} 19. fxe3 {[%emt 0:03:34]} Qxe6 {[%emt 0:00:09]} 20. Rxf8+ {[%emt 0:00:10]} Rxf8 {[%emt 0:00:03]} 21. Rf1 {[%emt 0:00:14]} Rxf1+ {[%emt 0:00:13]} 22. Qxf1 {[%emt 0:00:55][%mdl 4096] Endgame. KQN-KQN} Nc4 {[%emt 0:00:17]} 23. e4 {[%emt 0:00:50]} dxe4 {[%emt 0:03:37][%cal Oh7h6]} 24. Qf4 {[%emt 0:00:53]} Nd6 {[%emt 0:02:02]} (24... Nxb2 $2 {too greedy.} 25. Qb8+ (25. Nxe4 $2 h6 $19) 25... Kf7 26. Qxb7+ Kg6 27. Qxb2 $18) 25. Qe3 {[%emt 0:01:07]} (25. Qg5 $142) 25... h6 {[%emt 0:00:22]} 26. h3 {[%emt 0:01:14]} Qe5 {[%emt 0:01:24] Dodges Qd4} 27. b3 {[%emt 0:01:25]} b5 {[%emt 0:03:04]} 28. g4 {[%emt 0:02:04]} (28. Ne2 $142 Nf5 29. Qb6) 28... b4 {[%emt 0:00:39]} 29. Ne2 {[%emt 0:00:18]} c5 {[%emt 0:00:05]} 30. Kg2 {[%emt 0:01:25]} Kh7 {[%emt 0:01:01]} 31. h4 {[%emt 0:01:06]} c4 {[%emt 0:00:15]} 32. Nd4 {[%emt 0:01:38]} cxb3 {[%emt 0:04:56]} 33. Nxb3 {[%emt 0:00:10]} Kg8 {[%emt 0:06:58] [#] ...Qb2+ is the strong threat.} 34. h5 {[%emt 0:04:37]} (34. Nd2 $142) 34... Nc4 {[%emt 0:01:13]} 35. Qc1 {[%emt 0:02:41]} Qc3 {[%emt 0:02:12]} 36. Qxc3 {[%emt 0:01:01]} bxc3 {[%emt 0:00:03] KN-KN} 37. Kf2 {[%emt 0:00:18]} Kf7 {[%emt 0:00:14]} (37... c2 $142 38. Nc1 Kf7) 38. Ke2 {[%emt 0:00:16]} c2 {[%emt 0:00:26] Black mates.} 39. Ke1 {[%emt 0:00:16]} Kf6 {[%emt 0:00:03]} 40. Kf2 {[%emt 0:00:12]} Ke5 {[%emt 0:00:17]} 41. Kg3 {[%emt 0:00:20]} Nb2 {[%emt 0:00:13]} 42. g5 {[%emt 0:00:26]} Nd3 {[%emt 0:00:07]} 43. gxh6 {[%emt 0:00:06]} gxh6 {[%emt 0:00:02] Black took control after the opening.   Weighted Error Value: White=0.58/Black=0.21 (precise) .  Mistake:       	White=6     	---        Inaccurate:     	White=2     	Black=1      OK:         	White=5     	Black=16     Best:        	---       	Black=2} (43... c1=B $2 {loses.} 44. hxg7 (44. Nxa5 $2 Bf4+ 45. Kg2 gxh6 $19) 44... Nf4 45. g8=Q $18 (45. g8=B Nxh5+ 46. Kg2 Nf6 $11)) 0-1

[Event "1000GM Summer GM-I 2024"]
[Site "San Jose"]
[Date "2024.07.05"]
[Round "3.5"]
[White "Lu, Maximillian"]
[Black "Arenas, David"]
[Result "1-0"]
[ECO "E18"]
[WhiteElo "2380"]
[BlackElo "2357"]
[Annotator "TA"]
[PlyCount "115"]
[EventDate "2024.07.03"]
[EventType "tourn"]
[EventCountry "USA"]
[SourceTitle "playchess.com"]
[Source "ChessBase"]
[SourceQuality "1"]
[TimeControl "5400+30"]

{[%evp 12,115,16,0,35,18,74,0,6,27,60,39,49,40,59,51,51,38,41,37,105,92,109,75,137,92,129,129,140,92,119,102,120,102,137,135,150,145,164,148,169,123,138,149,173,169,187,163,187,169,191,190,185,190,221,208,238,258,264,261,295,282,331,267,284,152,170,160,165,172,168,132,165,167,292,295,295,288,275,280,1107,247,1140,233,226,221,233,245,235,231,277,287,315,308,325,220,218,194,219,151,528,525,552,536,6953,6099]} 1. d4 {[%emt 0:03:43]} Nf6 {[%emt 0:00:05]} 2. Nf3 {[%emt 0:00:05]} e6 {[%emt 0:00:11]} 3. g3 {[%emt 0:00:07]} b6 {[%emt 0:02:18]} 4. Bg2 {[%emt 0:00:08]} Bb7 {[%emt 0:00:04]} 5. O-O {[%emt 0:00:35]} Be7 {[%emt 0:01:03]} 6. c4 {[%emt 0:01:37]} O-O {[%emt 0:00:06]} 7. Nc3 {[%emt 0:01:45]} a5 {[%emt 0:02:15]} 8. d5 {[%emt 0:03:54]} Na6 {[%emt 0:05:14]} (8... Bb4 $11 {remains equal.}) 9. Ne5 {[%emt 0:08:14]} (9. e4 $16) 9... exd5 $1 $11 {[%emt 0:02:56] The position is equal.} 10. cxd5 {[%emt 0:01:03]} d6 {[%emt 0:00:04]} 11. Nf3 {[%emt 0:07:28]} Nc5 {[%emt 0:07:30][%cal Ob6b5]} 12. Nd4 {[%emt 0:01:45]} Nfd7 {[%emt 0:00:21]} 13. Qc2 {[%emt 0:04:55]} Bf6 {[%emt 0:00:58]} 14. Rd1 {[%emt 0:00:01]} Re8 {[%emt 0:00:07]} 15. b3 {[%emt 0:01:24]} g6 {[%emt 0:09:23]} (15... Ba6 $14) 16. Bb2 {[%emt 0:00:35]} Qe7 {[%emt 0:02:16]} 17. Ncb5 {[%emt 0:11:13]} Rec8 {[%emt 0:04:50]} (17... Rac8 $142) 18. Rac1 {[%emt 0:01:44]} Bg7 {[%emt 0:01:36]} 19. a3 {[%emt 0:06:28]} Nf6 {[%emt 0:01:19]} 20. Nc3 {[%emt 0:00:41]} ({Better is} 20. e4) 20... Ng4 {[%emt 0:01:36]} 21. h3 {[%emt 0:06:53]} Nf6 {[%emt 0:04:04]} (21... Ne3 $2 22. fxe3 Qxe3+ 23. Kh2 $18) 22. b4 {[%emt 0:00:37]} Na6 {[%emt 0:00:18]} 23. Qb3 {[%emt 0:01:15]} h5 {[%emt 0:01:27]} 24. Rc2 {[%emt 0:03:09]} Qd7 {[%emt 0:00:41]} 25. Ncb5 {[%emt 0:08:31]} Qe8 {[%emt 0:06:31]} 26. Rc3 {[%emt 0:04:12]} ({White should play} 26. e4 $18) 26... Qd7 {[%emt 0:01:01]} 27. Rdc1 {[%emt 0:00:28] White is more active.} Ne8 {[%emt 0:00:41]} 28. R3c2 {[%emt 0:00:33]} Nf6 {[%emt 0:00:31]} 29. Nc6 {[%emt 0:02:10]} Bxc6 {[%emt 0:06:12]} 30. Rxc6 {[%emt 0:00:54]} Ne8 {[%emt 0:00:21]} 31. Bxg7 {[%emt 0:00:38]} Kxg7 {[%emt 0:00:01]} 32. Nd4 {[%emt 0:05:28]} Kg8 {[%emt 0:01:27] Black is weak on the light squares} 33. e4 {[%emt 0:01:09]} Nb8 {[%emt 0:02:25]} 34. R6c2 {[%emt 0:00:22]} Qe7 {[%emt 0:06:08]} 35. f4 {[%emt 0:00:14]} Qf6 {[%emt 0:04:12]} 36. Qe3 {[%emt 0:00:38]} axb4 {[%emt 0:00:29]} 37. axb4 {[%emt 0:01:13]} Ra4 {[%emt 0:01:51]} 38. Rc4 {[%emt 0:03:03]} (38. e5 $18 Qe7 39. e6) 38... Nd7 $16 {[%emt 0:00:44]} 39. Nc6 {[%emt 0:00:55]} Rca8 {[%emt 0:01:44]} 40. e5 {[%emt 0:00:02]} Qg7 {[%emt 0:00:08]} 41. Re4 {[%emt 0:01:23][%cal Bc4e4,Be4e5,Be5g5][%mdl 32] And now e6 would win.} Nb8 {[%emt 0:02:28]} 42. Ne7+ {[%emt 0:06:18]} Kh7 {[%emt 0:02:09]} (42... Kf8 $142 43. Rec4 h4) 43. f5 $18 {[%emt 0:01:22] e6 would now be deadly.} dxe5 {[%emt 0:05:22]} 44. fxg6+ {[%emt 0:00:05]} (44. Rxe5 $6 Nd7 45. fxg6+ fxg6) 44... fxg6 {[%emt 0:00:05]} 45. Rxe5 {[%emt 0:00:01]} Ra3 $2 {[%emt 0:08:41]} (45... Nd7 46. Re6 Ra3) 46. Qg5 $2 {[%emt 0:00:11]} (46. Rxh5+ gxh5 47. Qe4+ Kh8 48. Ng6+ Kh7 49. Nh4+ (49. Qxe8 $2 Nd7 $19) 49... Kg8 50. Nf5 (50. Qxe8+ Qf8 $18)) 46... Ra1 $2 {[%emt 0:01:01]} (46... Nd7 47. Qxh5+ gxh5 48. Rxh5+ Qh6 49. Be4+ (49. Rxh6+ $2 {is the wrong capture.} Kxh6 50. Kh2 Ra2 $19) 49... Kg7 50. Nf5+ (50. Rxh6 $2 {too greedy.} Kxh6 51. Kg2 Ra2+ 52. Kh1 Ra1 $19) 50... Kf8 51. Rxh6 (51. Nxh6 Nef6 $16) 51... Ndf6) 47. Rxa1 $2 {[%emt 0:00:35]} (47. Nxg6 Rxc1+ 48. Qxc1) 47... Rxa1+ {[%emt 0:00:01]} 48. Kh2 {[%emt 0:00:01][%cal Oe7g6] Nxg6! would kill now.} Qf6 {[%emt 0:02:48] [#]} 49. Nxg6 $1 {[%emt 0:01:41][%mdl 512] Intending Re7+ and mate.} Qxg5 {[%emt 0:00:17]} 50. Rxg5 {[%emt 0:00:01]} Kh6 {[%emt 0:00:46]} 51. h4 {[%emt 0:00:30]} Nd7 {[%emt 0:00:30] Inhibits Nf8.} 52. Nf4 {[%emt 0:00:30]} Nef6 {[%emt 0:00:30] Inhibits Be4.} 53. Bf3 {[%emt 0:00:30][%cal Rf3h5] Inhibits Ng4+.} Rb1 {[%emt 0:00:30]} 54. Bxh5 {[%emt 0:00:30] Strongly threatening Bg6.} Rxb4 {[%emt 0:00:30]} 55. Bg6 {[%emt 0:00:30] Threatens to win with Kh3.} b5 $2 {[%emt 0:00:30]} (55... Ne5 $16 56. Kh3 (56. Rxe5 $2 {loses.} Ng4+ 57. Kh3 Nxe5 $19) 56... Rxf4 57. Rxe5 Rd4) 56. Kh3 {[%emt 0:00:30] White is clearly winning.} Nf8 {[%emt 0:00:30][%cal Ob4f4]} 57. Bf5 {[%emt 0:00:30] Black must now prevent Ne6.} Rd4 {[%emt 0:00:30]} 58. Ne6 {[%emt 0:00:30] Weighted Error Value: White=0.33/Black=0.34.  Loses game:     	---       	Black=1      Mistake:       	White=5     	Black=6      Inaccurate:     	White=4     	Black=4      OK:         	White=22    	Black=8      Best:        	White=3     	Black=2      Strong:       	---       	Black=1      Brilliant:      	White=1     	---} 1-0